bitfinex/quotes_SOLUSD_20250310
["timestamp","ask_amount","ask_price","bid_price","bid_amount"]
[1741569808557,0.063,127.14,127.09,38.77263299]
[1741569808758,0.063,127.14,127.1,38.77263299]
[1741569809142,0.063,127.14,127.09,38.77263299]
[1741569809433,38.83563299,127.14,127.09,46.64053299]
[1741569809630,38.83563299,127.14,127.09,7.8679]
[1741569809847,38.83563299,127.14,127.08,124.499]
[1741569809848,38.77263299,127.13,127.08,124.499]
[1741569810046,38.77263299,127.13,127.08,163.27163299]
[1741569810249,0.063,127.14,127.09,38.77263299]
[1741569810445,0.063,127.14,127.11,38.77263299]
[1741569810646,0.063,127.13,127.1,38.77263299]
[1741569811039,0.063,127.13,127.08,244.77163299]
[1741569811239,0.063,127.13,127.09,38.77263299]
[1741569811450,38.83563299,127.13,127.08,46.67163299]
[1741569811647,38.83563299,127.13,127.08,7.899]
[1741569812038,38.83563299,127.13,127.08,46.67163299]
[1741569812240,24.27519969,127.13,127.08,32.11119969]
[1741569812546,0.063,127.13,127.08,32.11119969]
[1741569812732,0.063,127.13,127.09,24.21219969]
[1741569812938,0.063,127.13,127.1,24.21219969]
[1741569813348,0.063,127.13,127.09,24.21219969]
[1741569813863,0.063,127.13,127.09,32.08039969]
[1741569814053,24.27519969,127.13,127.08,89.3989]
[1741569814362,24.21219969,127.12,127.08,7.8989]
[1741569815166,0.063,127.13,127.08,7.8989]
[1741569815344,0.063,127.13,127.08,32.11109969]
[1741569815743,24.27519969,127.13,127.08,7.8989]
[1741569815945,24.27519969,127.13,127.08,32.11109969]
[1741569816466,32.14119969,127.13,127.08,32.11109969]
[1741569817157,0.063,127.13,127.08,32.11109969]
[1741569817357,0.063,127.13,127.09,24.21219969]
[1741569817558,0.063,127.13,127.1,24.21219969]
[1741569819148,0.063,127.13,127.11,7.8672]
[1741569819558,0.063,127.13,127.11,32.07939969]
[1741569819754,0.063,127.13,127.12,32.83219969]
[1741569819951,0.063,127.13,127.12,38.85849969]
[1741569820540,0.0001,127.14,127.13,20.17734886]
[1741569820741,0.063,127.18,127.14,18.64964886]
[1741569820979,0.063,127.18,127.17,24.21219969]
[1741569821358,0.063,127.18,127.17,40.69559969]
[1741569823367,0.063,127.18,127.17,8.62]
[1741569824051,0.063,127.18,127.15,7.8645]
[1741569824258,24.27519969,127.18,127.14,16.4852]
[1741569824666,0.063,127.18,127.14,40.69739969]
[1741569825276,0.063,127.18,127.17,7.8634]
[1741569825860,0.063,127.18,127.14,226.3833]
[1741569826062,0.063,127.18,127.14,230.93219969]
[1741569826244,0.063,127.18,127.14,206.72]
[1741569826442,0.063,127.18,127.14,230.93219969]
[1741569826653,0.063,127.18,127.15,24.21219969]
[1741569827074,0.063,127.18,127.16,24.21219969]
[1741569827271,0.063,127.18,127.17,32.07559969]
[1741569827474,0.063,127.18,127.17,248.82524855]
[1741569827773,0.0001,127.18,127.17,250.45334855]
[1741569828172,0.063,127.26,127.2,20.0]
[1741569828346,0.063,127.26,127.25,24.21219969]
[1741569828786,0.063,127.26,127.24,24.21219969]
[1741569829152,0.063,127.26,127.23,24.21219969]
[1741569829351,0.063,127.26,127.23,32.07169969]
[1741569830348,0.063,127.26,127.22,46.50874733]
[1741569831076,0.063,127.26,127.25,38.64844733]
[1741569831659,0.0001,127.26,127.25,255.39809619]
[1741569831849,0.0001,127.26,127.25,300.23734352]
[1741569832478,0.0001,127.26,127.25,269.44739619]
[1741569832972,0.0001,127.26,127.25,250.79774733]
[1741569835287,0.0001,127.26,127.25,269.44739619]
[1741569835458,0.063,127.31,127.26,18.64964886]
[1741569835767,0.063,127.31,127.3,38.64844733]
[1741569835969,0.063,127.31,127.3,57.29809619]
[1741569836677,0.063,127.31,127.3,65.15349619]
[1741569837260,0.0001,127.31,127.3,146.65349619]
[1741569837484,0.0001,127.31,127.3,303.90194352]
[1741569838194,1.5647,127.43,127.38,38.64844733]
[1741569838401,44.81834733,127.46,127.4,38.64844733]
[1741569838695,44.81834733,127.46,127.41,38.64844733]
[1741569839063,0.063,127.46,127.42,38.64844733]
[1741569839270,38.71144733,127.46,127.4,236.74844733]
[1741569839562,38.71144733,127.46,127.41,38.64844733]
[1741569840369,0.063,127.46,127.44,20.0]
[1741569840574,0.063,127.46,127.45,47.24844733]
[1741569841094,0.063,127.46,127.45,8.6]
[1741569841774,0.063,127.46,127.45,47.24844733]
[1741569842284,0.063,127.46,127.45,263.99809619]
[1741569842493,0.063,127.47,127.45,245.34844733]
[1741569842682,0.063,127.47,127.46,38.64844733]
[1741569842866,0.063,127.47,127.46,256.5744011]
[1741569843062,0.063,127.47,127.46,255.39809619]
[1741569843376,0.063,127.47,127.46,263.99809619]
[1741569843572,0.063,127.47,127.46,245.34844733]
[1741569843781,0.063,127.47,127.46,206.7]
[1741569843963,0.063,127.47,127.46,8.6]
[1741569844168,38.71144733,127.47,127.43,8.6]
[1741569844394,0.063,127.47,127.43,47.24844733]
[1741569845192,0.063,127.47,127.45,38.64844733]
[1741569845377,0.063,127.47,127.44,18.64964886]
[1741569845574,0.063,127.47,127.43,16.4473]
[1741569845768,0.063,127.47,127.45,38.64844733]
[1741569846171,0.063,127.47,127.43,47.24844733]
[1741569846593,38.71144733,127.47,127.43,8.63]
[1741569846897,0.063,127.47,127.43,55.12584733]
[1741569847193,0.063,127.47,127.43,47.27844733]
[1741569847374,38.71144733,127.47,127.43,8.63]
[1741569847568,0.063,127.47,127.43,8.63]
[1741569848298,38.71144733,127.47,127.43,8.63]
[1741569848812,0.063,127.47,127.44,38.64844733]
[1741569848979,0.063,127.47,127.46,38.64844733]
[1741569849184,0.063,127.47,127.46,57.29809619]
[1741569849388,0.063,127.47,127.46,255.39809619]
[1741569850489,0.0001,127.47,127.46,138.79809619]
[1741569850697,0.0001,127.47,127.46,255.39809619]
[1741569850878,0.0001,127.47,127.46,263.24359619]
[1741569851381,0.0001,127.47,127.46,236.74844733]
[1741569851579,0.0001,127.47,127.43,7.8768]
[1741569851893,38.64854733,127.47,127.43,8.61]
[1741569852093,38.64844733,127.46,127.43,0.03]
[1741569852798,46.49444733,127.46,127.43,0.03]
[1741569853601,38.64844733,127.44,127.43,0.03]
[1741569854300,27.8452,127.47,127.43,0.03]
[1741569854486,38.64844733,127.46,127.43,0.03]
[1741569854799,38.64844733,127.44,127.43,0.03]
[1741569855179,38.64844733,127.45,127.43,0.03]
[1741569855582,0.0001,127.47,127.43,0.03]
[1741569855900,0.0001,127.47,127.45,38.64844733]
[1741569856093,0.0001,127.47,127.46,38.64844733]
[1741569856283,0.563,127.5,127.46,58.47431843]
[1741569856490,0.563,127.5,127.48,38.64844733]
[1741569856984,0.563,127.5,127.47,38.64844733]
[1741569857308,0.563,127.5,127.46,55.07384733]
[1741569857485,38.64844733,127.49,127.46,16.4255]
[1741569857684,38.64844733,127.49,127.46,8.58]
[1741569858387,38.64844733,127.49,127.46,16.4253]
[1741569858683,38.64844733,127.48,127.46,8.58]
[1741569858878,1.5471,127.49,127.45,0.03]
[1741569859101,38.64844733,127.48,127.45,0.03]
[1741569859891,38.64844733,127.47,127.45,0.03]
[1741569860298,9.3909,127.49,127.45,0.03]
[1741569860494,38.64844733,127.47,127.45,0.03]
[1741569861609,38.64844733,127.48,127.45,0.03]
[1741569861797,48.03924733,127.49,127.45,0.03]
[1741569862114,1.5471,127.49,127.45,0.03]
[1741569862320,59.21144733,127.5,127.45,38.67844733]
[1741569862820,38.64844733,127.48,127.45,0.03]
[1741569863722,38.64844733,127.49,127.45,0.03]
[1741569864088,39.21144733,127.5,127.45,0.03]
[1741569864590,47.05464733,127.5,127.45,0.03]
[1741569864795,39.21144733,127.5,127.45,0.03]
[1741569864987,38.64844733,127.48,127.45,0.03]
[1741569865693,39.21144733,127.5,127.45,38.67844733]
[1741569866087,39.21144733,127.5,127.45,0.03]
[1741569866334,38.64844733,127.49,127.45,0.03]
[1741569867191,38.64844733,127.48,127.45,0.03]
[1741569867605,38.64844733,127.49,127.45,0.03]
[1741569868400,59.21144733,127.5,127.45,0.03]
[1741569869009,38.64844733,127.49,127.45,0.03]
[1741569869212,38.64844733,127.48,127.45,0.03]
[1741569869490,38.64844733,127.49,127.45,0.03]
[1741569869685,46.49224733,127.49,127.45,0.03]
[1741569869892,38.64844733,127.49,127.45,0.03]
[1741569870408,46.49234733,127.49,127.45,0.03]
[1741569870995,38.64844733,127.49,127.45,0.03]
[1741569871396,39.21144733,127.5,127.45,0.03]
[1741569871797,39.21144733,127.5,127.45,7.8762]
[1741569873530,38.64844733,127.49,127.45,0.03]
[1741569873733,38.64844733,127.48,127.45,0.03]
[1741569873912,38.64844733,127.47,127.45,0.03]
[1741569874408,38.64844733,127.46,127.45,0.03]
[1741569874610,38.64844733,127.47,127.45,0.03]
[1741569875702,82.963,127.5,127.45,0.03]
[1741569876036,38.64844733,127.49,127.45,0.03]
[1741569877543,39.21144733,127.5,127.45,0.03]
[1741569877709,38.64844733,127.49,127.45,0.03]
[1741569878311,0.563,127.5,127.45,0.03]
[1741569878508,38.64844733,127.49,127.45,0.03]
[1741569878923,0.563,127.5,127.45,236.77844733]
[1741569879208,0.563,127.5,127.47,38.64844733]
[1741569879407,0.563,127.5,127.47,47.20844733]
[1741569879623,38.64844733,127.49,127.47,8.56]
[1741569880137,39.21144733,127.5,127.47,16.4048]
[1741569881222,0.563,127.5,127.47,16.4048]
[1741569881531,39.21144733,127.5,127.47,16.4048]
[1741569882031,0.563,127.5,127.47,253.15324733]
[1741569882212,0.563,127.5,127.48,38.64844733]
[1741569882413,0.563,127.5,127.48,236.74844733]
[1741569883032,0.563,127.5,127.49,57.29809619]
[1741569883827,0.563,127.5,127.49,255.39809619]
[1741569884131,0.563,127.5,127.49,263.24179619]
[1741569885031,0.0001,127.5,127.49,263.24179619]
[1741569885731,0.063,127.56,127.54,20.0]
[1741569886028,0.063,127.56,127.53,38.64844733]
[1741569886241,0.063,127.56,127.54,38.64844733]
[1741569886810,0.063,127.56,127.55,57.29809619]
[1741569887017,0.063,127.56,127.55,255.39799619]
[1741569888021,0.0001,127.56,127.55,267.08918287]
[1741569888429,0.063,127.62,127.57,38.64964886]
[1741569888635,0.063,127.62,127.59,57.29809619]
[1741569888936,0.063,127.62,127.58,47.20844733]
[1741569889435,0.063,127.62,127.6,38.64844733]
[1741569889741,0.063,127.62,127.59,116.6]
[1741569889925,0.063,127.62,127.59,38.64844733]
[1741569890242,0.063,127.62,127.59,46.48584733]
[1741569890538,0.063,127.62,127.59,7.8374]
[1741569891042,0.063,127.62,127.58,116.6]
[1741569891347,38.64844733,127.6,127.57,8.56]
[1741569891641,0.063,127.62,127.57,8.56]
[1741569891820,38.64844733,127.6,127.57,8.56]
[1741569892024,0.063,127.62,127.57,8.56]
[1741569892025,38.64844733,127.59,127.57,8.56]
[1741569892230,0.063,127.62,127.57,16.3986]
[1741569892427,0.063,127.62,127.58,38.64844733]
[1741569892620,0.063,127.62,127.59,38.64844733]
[1741569893039,0.063,127.62,127.6,38.64844733]
[1741569893244,0.063,127.62,127.61,38.64844733]
[1741569893629,0.063,127.62,127.6,236.74834733]
[1741569894134,0.063,127.62,127.6,198.0999]
[1741569894322,0.063,127.62,127.61,38.64844733]
[1741569894517,0.063,127.62,127.61,255.39799619]
[1741569894828,0.063,127.62,127.61,261.77339619]
[1741569896114,0.063,127.62,127.61,198.0999]
[1741569896430,0.063,127.62,127.61,206.6399]
[1741569896746,0.063,127.62,127.58,274.9049]
[1741569896918,0.063,127.62,127.58,313.55334733]
[1741569897119,0.063,127.62,127.59,38.64844733]
[1741569897443,0.063,127.62,127.58,313.55334733]
[1741569897623,0.063,127.62,127.59,38.64844733]
[1741569898344,0.063,127.62,127.6,46.48534733]
[1741569898522,0.063,127.62,127.61,38.64844733]
[1741569898722,0.063,127.62,127.61,57.29809619]
[1741569899627,0.063,127.62,127.61,38.64844733]
[1741569900135,0.063,127.62,127.61,57.29809619]
[1741569900334,0.063,127.62,127.61,65.13439619]
[1741569901326,0.063,127.62,127.61,264.40922285]
[1741569901649,0.063,127.62,127.61,224.58584886]
[1741569902028,0.063,127.62,127.61,263.23429619]
[1741569902935,0.063,127.62,127.61,224.58584886]
[1741569903534,0.063,127.62,127.59,7.8374]
[1741569903738,0.063,127.62,127.58,129.08619362]
[1741569903920,0.063,127.62,127.58,167.73464095]
[1741569904127,0.063,127.62,127.61,58.64844733]
[1741569904324,0.063,127.63,127.62,18.64964886]
[1741569904535,0.563,127.65,127.63,7.8351]
[1741569904858,0.563,127.65,127.63,8.54]
[1741569905443,0.563,127.65,127.64,57.29809619]
[1741569905628,2.734348,127.68,127.65,18.64964886]
[1741569905823,2.734348,127.68,127.66,38.64844733]
[1741569906526,2.734348,127.68,127.65,263.23149619]
[1741569906721,2.734348,127.68,127.65,198.0999]
[1741569907150,2.734348,127.68,127.65,205.9336]
[1741569907463,2.734348,127.68,127.65,244.58204733]
[1741569907664,2.734348,127.68,127.66,38.64844733]
[1741569907884,2.734348,127.68,127.65,198.0999]
[1741569908541,49.21499533,127.68,127.63,206.6399]
[1741569908750,38.64844733,127.66,127.63,206.6399]
[1741569909081,38.64844733,127.66,127.63,8.54]
[1741569909227,68.79519533,127.68,127.61,0.063]
[1741569909429,38.64844733,127.62,127.61,0.063]
[1741569910432,77.29689466,127.62,127.61,0.063]
[1741569910756,18.64964886,127.61,127.54,0.063]
[1741569910956,38.64844733,127.56,127.54,0.063]
[1741569911549,38.64844733,127.55,127.54,0.063]
[1741569914343,1.6375,127.56,127.54,0.063]
[1741569914550,38.64844733,127.55,127.54,0.063]
[1741569915933,46.48844733,127.55,127.54,0.063]
[1741569916134,1.6375,127.56,127.54,0.063]
[1741569916345,58.64844733,127.55,127.54,0.063]
[1741569919538,66.48844733,127.55,127.54,0.063]
[1741569919965,58.64844733,127.55,127.54,0.063]
[1741569921755,167.53809619,127.55,127.54,0.063]
[1741569922455,18.64964886,127.54,127.53,0.505]
[1741569922659,57.29809619,127.54,127.53,0.0001]
[1741569923253,65.13869619,127.54,127.53,0.0001]
[1741569923551,20.0,127.51,127.48,0.063]
[1741569923739,58.64844733,127.5,127.48,0.063]
[1741569923939,38.64844733,127.51,127.48,0.063]
[1741569924151,38.64844733,127.52,127.48,0.063]
[1741569924343,9.4774,127.56,127.48,65.90109619]
[1741569924535,38.64844733,127.54,127.49,38.64844733]
[1741569924956,38.64844733,127.55,127.5,38.64844733]
[1741569925343,38.64844733,127.55,127.51,7.8425]
[1741569925654,38.64844733,127.54,127.51,7.8425]
[1741569925857,38.64844733,127.54,127.5,7.8429]
[1741569926069,38.64844733,127.54,127.49,46.49214733]
[1741569926439,38.64844733,127.58,127.52,38.64844733]
[1741569926643,38.64844733,127.6,127.54,38.64844733]
[1741569926943,38.64844733,127.62,127.57,38.64844733]
[1741569927144,0.5,127.65,127.6,38.64844733]
[1741569927355,0.5,127.65,127.62,38.64844733]
[1741569927656,39.14844733,127.65,127.6,244.58514733]
[1741569927856,0.5,127.65,127.62,38.64844733]
[1741569928051,0.5,127.65,127.61,38.64844733]
[1741569928257,0.5,127.65,127.62,38.64844733]
[1741569928747,0.5,127.65,127.61,57.29809619]
[1741569928945,0.5,127.65,127.6,244.58514733]
[1741569929147,39.14844733,127.65,127.6,209.83380046]
[1741569929341,39.14844733,127.65,127.6,248.48224779]
[1741569929755,0.5,127.65,127.6,248.48224779]
[1741569930572,0.5,127.65,127.61,38.64844733]
[1741569930743,0.5,127.65,127.62,38.64844733]
[1741569931168,39.14844733,127.65,127.6,228.48344932]
[1741569931400,0.5,127.65,127.61,38.64844733]
[1741569931544,0.53,127.65,127.62,7.8357]
[1741569931947,0.53,127.65,127.61,7.8362]
[1741569932162,0.53,127.65,127.62,38.64844733]
[1741569932661,0.53,127.65,127.63,47.16844733]
[1741569932854,0.53,127.65,127.63,245.26834733]
[1741569933760,2.734348,127.68,127.65,18.64964886]
[1741569933945,2.734348,127.68,127.67,38.64844733]
[1741569934146,0.063,127.69,127.67,236.74834733]
[1741569934347,0.063,127.69,127.68,66.99235987]
[1741569934560,0.063,127.69,127.68,263.91799619]
[1741569934753,0.063,127.69,127.68,245.26834733]
[1741569934947,0.063,127.69,127.68,90.0199]
[1741569935553,46.54294733,127.69,127.65,303.3]
[1741569935871,38.64844733,127.68,127.65,186.7]
[1741569936072,38.64844733,127.68,127.65,194.5338]
[1741569936273,38.71144733,127.69,127.65,7.8338]
[1741569936573,38.64844733,127.68,127.63,38.64844733]
[1741569936755,38.71144733,127.69,127.64,38.64844733]
[1741569936952,0.063,127.69,127.65,47.16844733]
[1741569937158,38.64844733,127.67,127.62,93.16614507]
[1741569937351,38.64844733,127.65,127.61,130.6696]
[1741569937546,38.64844733,127.67,127.62,38.64844733]
[1741569937778,7.8944,127.69,127.62,38.64844733]
[1741569937954,38.64844733,127.67,127.62,38.64844733]
[1741569938351,57.61843925,127.67,127.62,57.61843925]
[1741569938563,57.68143925,127.69,127.63,57.61843925]
[1741569938774,57.68143925,127.69,127.64,57.61843925]
[1741569939176,57.61843925,127.68,127.62,57.61843925]
[1741569939381,57.61843925,127.66,127.61,184.28302738]
[1741569939566,57.61843925,127.67,127.61,184.28302738]
[1741569939881,57.61843925,127.67,127.62,57.61843925]
[1741569940062,57.61843925,127.66,127.61,17.90078813]
[1741569940373,57.61843925,127.65,127.61,3.83108813]
[1741569940575,57.61843925,127.62,127.58,303.3]
[1741569940754,101.04964886,127.67,127.58,186.7]
[1741569940755,57.61843925,127.61,127.58,186.7]
[1741569940954,57.61843925,127.63,127.58,252.15653925]
[1741569941151,57.61843925,127.64,127.58,252.15653925]
[1741569941396,57.61843925,127.63,127.58,252.15653925]
[1741569941576,57.61843925,127.62,127.58,186.7]
[1741569941788,65.45433925,127.62,127.58,186.7]
[1741569942079,57.61843925,127.62,127.58,194.5381]
[1741569942380,65.45443925,127.62,127.58,186.7]
[1741569944758,65.45443925,127.62,127.54,8.583]
[1741569944759,57.61843925,127.59,127.54,8.583]
[1741569945082,57.61843925,127.58,127.54,8.583]
[1741569945581,57.61843925,127.58,127.54,0.063]
[1741569945777,57.61843925,127.57,127.54,0.063]
[1741569946080,65.45733925,127.57,127.54,0.063]
[1741569946480,57.61843925,127.55,127.54,0.063]
[1741569947973,57.61843925,127.56,127.54,0.063]
[1741569948283,57.61843925,127.55,127.54,0.063]
[1741569951667,65.45843925,127.55,127.54,0.063]
[1741569952182,84.10808811,127.55,127.54,0.063]
[1741569952964,20.0,127.51,127.48,0.063]
[1741569953265,57.61843925,127.5,127.48,0.063]
[1741569953465,57.61843925,127.49,127.48,0.063]
[1741569954391,82.4,127.53,127.48,0.063]
[1741569954560,18.64964886,127.54,127.49,57.61843925]
[1741569954561,57.61843925,127.54,127.49,57.61843925]
[1741569954885,57.61843925,127.57,127.51,57.61843925]
[1741569955087,57.61843925,127.54,127.49,255.71833925]
[1741569955283,57.61843925,127.54,127.49,139.11833925]
[1741569955468,57.61843925,127.55,127.5,57.61843925]
[1741569955662,9.4345,127.58,127.5,57.61843925]
[1741569955864,57.61843925,127.55,127.5,57.61843925]
[1741569956270,57.61843925,127.54,127.49,139.11833925]
[1741569956487,57.61843925,127.54,127.5,7.8425]
[1741569956788,57.61843925,127.54,127.49,89.3435]
[1741569957189,57.61843925,127.53,127.49,81.4999]
[1741569957565,57.61843925,127.53,127.49,89.3436]
[1741569957870,57.61843925,127.51,127.48,0.063]
[1741569958082,57.61843925,127.53,127.48,85.52563925]
[1741569958268,38.50233807,127.52,127.48,20.063]
[1741569958474,38.50233807,127.52,127.48,7.9073]
[1741569958666,38.50233807,127.52,127.48,0.063]
[1741569958868,38.50233807,127.52,127.48,7.9072]
[1741569959189,101.04964886,127.55,127.48,7.9072]
[1741569959391,38.50233807,127.53,127.48,7.9072]
[1741569959591,38.50233807,127.54,127.48,46.40953807]
[1741569959772,120.90233807,127.55,127.49,38.50233807]
[1741569960085,120.90233807,127.55,127.5,38.50233807]
[1741569960391,120.90233807,127.55,127.5,46.34503807]
[1741569960778,120.90233807,127.55,127.5,7.8427]
[1741569960978,38.50233807,127.54,127.49,16.3635]
[1741569961174,38.50233807,127.52,127.49,8.52]
[1741569961396,38.50233807,127.5,127.48,0.063]
[1741569961576,38.50233807,127.49,127.48,0.063]
[1741569962262,38.50233807,127.51,127.48,0.063]
[1741569962481,7.8413,127.53,127.48,0.063]
[1741569962694,38.50233807,127.51,127.48,0.063]
[1741569962891,38.50233807,127.5,127.48,0.063]
[1741569963075,57.15198693,127.49,127.48,0.063]
[1741569963388,82.4,127.5,127.48,0.063]
[1741569963570,38.50233807,127.49,127.48,0.063]
[1741569964172,57.15198693,127.49,127.48,0.063]
[1741569964506,38.50233807,127.49,127.48,0.063]
[1741569965195,38.50233807,127.54,127.48,45.21503807]
[1741569965400,38.50233807,127.55,127.5,38.50233807]
[1741569965610,38.50233807,127.54,127.5,8.52]
[1741569965769,38.50233807,127.53,127.48,243.31493807]
[1741569965974,38.50233807,127.52,127.48,213.3326]
[1741569966499,38.50233807,127.52,127.48,221.1767]
[1741569966689,38.50233807,127.51,127.48,213.3326]
[1741569966991,38.50233807,127.52,127.48,23.077]
[1741569967995,0.03,127.53,127.49,38.50233807]
[1741569968197,0.03,127.53,127.51,38.50233807]
[1741569968495,0.03,127.53,127.5,7.843]
[1741569968692,0.03,127.53,127.49,236.60223807]
[1741569968876,38.53233807,127.53,127.49,198.0999]
[1741569969075,38.53233807,127.53,127.49,205.9435]
[1741569969288,0.03,127.53,127.49,244.44583807]
[1741569969497,0.03,127.53,127.49,65.95523807]
[1741569969697,0.03,127.53,127.5,38.50233807]
[1741569970006,0.03,127.53,127.52,38.50233807]
[1741569970598,0.03,127.53,127.52,46.34423807]
[1741569970774,0.03,127.53,127.52,7.8419]
[1741569970968,38.53233807,127.53,127.5,206.6199]
[1741569971183,0.03,127.53,127.5,252.96523807]
[1741569971689,0.03,127.53,127.5,8.52]
[1741569971993,38.53233807,127.53,127.5,8.52]
[1741569972516,38.50233807,127.52,127.5,8.52]
[1741569972698,38.53233807,127.53,127.5,8.52]
[1741569973004,38.50233807,127.52,127.5,8.52]
[1741569973382,38.50233807,127.51,127.48,0.063]
[1741569973613,38.50233807,127.5,127.48,0.063]
[1741569974123,0.03,127.53,127.48,46.40953807]
[1741569974398,38.53233807,127.53,127.48,7.9072]
[1741569974620,0.03,127.53,127.5,38.50233807]
[1741569974977,0.03,127.53,127.49,8.5]
[1741569975381,0.03,127.53,127.49,47.00233807]
[1741569975803,0.03,127.53,127.49,8.5]
[1741569976000,38.53233807,127.53,127.49,8.5]
[1741569976190,38.50233807,127.52,127.49,8.5]
[1741569976585,46.34443807,127.52,127.48,0.063]
[1741569976900,38.50233807,127.49,127.48,0.063]
[1741569978634,64.99568693,127.49,127.48,0.063]
[1741569978788,148.93778693,127.49,127.48,0.063]
[1741569981210,122.44443807,127.49,127.48,0.063]
[1741569981396,130.28813807,127.49,127.48,0.063]
[1741569981787,148.93778693,127.49,127.48,0.063]
[1741569982230,122.44443807,127.49,127.48,0.063]
[1741569982510,120.90233807,127.49,127.48,0.063]
[1741569983112,38.50233807,127.49,127.48,0.063]
[1741569983701,1.607,127.52,127.48,0.063]
[1741569983920,38.50233807,127.52,127.48,0.063]
[1741569984307,0.03,127.53,127.48,38.56533807]
[1741569984494,38.53233807,127.53,127.48,0.063]
[1741569985090,38.53233807,127.53,127.48,7.9073]
[1741569985291,38.53233807,127.53,127.48,46.40963807]
[1741569985615,38.53233807,127.53,127.48,7.9073]
[1741569986515,38.50233807,127.49,127.48,0.063]
[1741569986711,38.50233807,127.5,127.48,0.063]
[1741569987092,38.50233807,127.51,127.48,0.063]
[1741569987286,38.50233807,127.52,127.48,0.063]
[1741569987708,0.03,127.53,127.48,0.063]
[1741569987906,38.50233807,127.52,127.48,0.063]
[1741569988496,38.53233807,127.53,127.48,0.063]
[1741569988707,38.50233807,127.52,127.48,0.063]
[1741569989089,38.50233807,127.51,127.48,0.063]
[1741569989888,38.50233807,127.5,127.48,0.063]
[1741569990113,38.50233807,127.51,127.48,0.063]
[1741569990315,38.50233807,127.52,127.48,0.063]
[1741569990812,38.50233807,127.51,127.48,0.063]
[1741569991013,0.03,127.53,127.48,0.063]
[1741569991205,0.03,127.53,127.48,7.9073]
[1741569991402,38.50233807,127.52,127.48,7.9073]
[1741569992317,46.34423807,127.52,127.48,0.063]
[1741569992523,38.50233807,127.52,127.48,0.063]
[1741569993016,46.34433807,127.52,127.48,0.063]
[1741569993233,38.50233807,127.52,127.48,0.063]
[1741569993617,38.50233807,127.51,127.48,0.063]
[1741569995803,38.50233807,127.5,127.48,0.063]
[1741569996241,38.50233807,127.51,127.48,0.063]
[1741569996928,38.50233807,127.5,127.48,0.063]
[1741569997121,38.50233807,127.49,127.48,0.063]
[1741570001319,64.99568693,127.49,127.48,0.063]
[1741570002136,38.50233807,127.49,127.48,0.063]
[1741570002731,38.50233807,127.49,127.46,8.3502]
[1741570002732,38.64964886,127.47,127.46,0.505]
[1741570003035,77.15198693,127.47,127.46,0.505]
[1741570003238,84.99688693,127.47,127.46,0.505]
[1741570003545,66.34723807,127.47,127.46,0.505]
[1741570003729,58.50233807,127.47,127.46,0.505]
[1741570004428,38.50233807,127.47,127.46,0.505]
[1741570004835,46.34723807,127.47,127.46,0.505]
[1741570005639,64.99688693,127.47,127.46,0.505]
[1741570006723,103.499225,127.47,127.45,0.03]
[1741570007037,159.40467614,127.46,127.45,0.03]
[1741570007537,20.0,127.44,127.43,0.03]
[1741570007739,144.776125,127.44,127.41,0.063]
[1741570007926,57.15198693,127.42,127.41,0.063]
[1741570009523,64.99998693,127.42,127.41,0.063]
[1741570013851,26.49764886,127.42,127.41,0.063]
[1741570014059,38.50233807,127.42,127.41,0.063]
[1741570015357,57.15198693,127.42,127.41,0.063]
[1741570015870,64.99998693,127.42,127.41,0.063]
[1741570016079,20.30764886,127.44,127.41,0.063]
[1741570016241,38.50233807,127.43,127.41,0.063]
[1741570018358,90.2464,127.45,127.41,0.063]
[1741570018560,38.50233807,127.42,127.41,0.063]